bitfinex/quotes_BTCUSD_20260221
["timestamp","ask_amount","ask_price","bid_price","bid_amount"]
[1771647202916,0.0002,67750.0,67743.0,0.07380791]
[1771647204010,0.0002,67750.0,67742.0,0.07402744]
[1771647205968,0.07400087,67750.0,67742.0,0.07402744]
[1771647206302,0.172874,67750.0,67742.0,0.07402744]
[1771647207885,0.27619312,67759.0,67742.0,0.00022]
[1771647208084,0.07379626,67755.0,67745.0,0.07380544]
[1771647208286,0.07379816,67753.0,67745.0,0.07380544]
[1771647208823,0.0002,67750.0,67745.0,0.07380544]
[1771647209515,0.0002,67750.0,67744.0,0.07380686]
[1771647215506,0.0002,67750.0,67743.0,0.07402623]
[1771647218723,0.07400106,67750.0,67743.0,0.00022]
[1771647218877,0.09887302,67744.0,67740.0,0.00045495]
[1771647220923,0.07380457,67747.0,67740.0,0.00045495]
[1771647221588,0.07380457,67747.0,67743.0,0.00022]
[1771647221772,0.09888086,67746.0,67743.0,0.00022]
[1771647221990,0.17268596,67746.0,67740.0,0.00045495]
[1771647226354,0.09888086,67746.0,67740.0,0.00045495]
[1771647237326,0.09888086,67746.0,67740.0,0.07426583]
[1771647240347,0.09908086,67746.0,67740.0,0.07426583]
[1771647240555,0.09908086,67746.0,67740.0,0.00045495]
[1771647240760,0.0002,67746.0,67741.0,0.07380946]
[1771647241529,0.0002,67746.0,67740.0,0.00045495]
[1771647241844,0.0002,67746.0,67741.0,0.07381054]
[1771647249370,0.0002,67746.0,67742.0,0.07380934]
[1771647252482,0.0002,67750.0,67740.0,0.00045495]
[1771647252661,0.0002,67750.0,67746.0,0.07380435]
[1771647253355,0.0720212,67750.0,67746.0,0.07380435]
[1771647254348,0.0002,67750.0,67747.0,0.0738033]
[1771647255146,0.0720212,67750.0,67747.0,0.0738033]
[1771647255349,0.0720212,67750.0,67746.0,0.07380435]
[1771647259933,0.0720212,67750.0,67741.0,0.00022]
[1771647260082,0.07172115,67745.0,67738.0,0.07381309]
[1771647260490,0.07172115,67745.0,67737.0,0.07403461]
[1771647260735,0.07380727,67744.0,67737.0,0.00022]
[1771647260909,0.14552842,67744.0,67737.0,0.00022]
[1771647261633,0.07172115,67744.0,67737.0,0.00022]
[1771647261791,0.07172115,67744.0,67737.0,0.07403477]
[1771647263244,0.07172115,67744.0,67738.0,0.0738138]
[1771647263825,0.07380467,67747.0,67739.0,0.07403269]
[1771647269277,0.07202636,67750.0,67739.0,0.00022]
[1771647269480,0.14582729,67750.0,67742.0,0.07380941]
[1771647271585,0.14582729,67750.0,67741.0,0.07381021]
[1771647272916,0.07416093,67750.0,67741.0,0.07381021]
[1771647273077,0.07288968,67749.0,67741.0,0.07381021]
[1771647279669,0.07288968,67749.0,67740.0,0.00022]
[1771647279873,0.07380358,67748.0,67740.0,0.00022]
[1771647280234,0.07380358,67748.0,67740.0,0.07408911]
[1771647286669,0.14669357,67749.0,67740.0,0.07408911]
[1771647288466,0.14669357,67749.0,67741.0,0.07380971]
[1771647290424,0.07416108,67750.0,67741.0,0.07380971]
[1771647290641,0.00036,67750.0,67742.0,0.07380852]
[1771647291560,0.07416077,67750.0,67742.0,0.07380852]
[1771647291944,0.0002,67749.0,67742.0,0.07380852]
[1771647292715,0.0002,67749.0,67741.0,0.07380971]
[1771647293015,0.07400185,67749.0,67741.0,0.07380971]
[1771647293818,0.0002,67749.0,67740.0,0.07408893]
[1771647294330,0.07248394,67745.0,67739.0,0.00022]
[1771647295678,0.0002,67749.0,67730.0,0.00038]
[1771647295799,0.0002,67749.0,67728.0,0.00022]
[1771647295800,0.07381734,67735.0,67728.0,0.00022]
[1771647296002,0.19055973,67734.0,67722.0,0.0001233]
[1771647296201,0.07246647,67730.0,67722.0,0.0001233]
[1771647296746,0.14628941,67730.0,67722.0,0.0001233]
[1771647298423,0.14628941,67730.0,67722.0,0.0003433]
[1771647298629,0.0738216,67731.0,67716.0,0.29534936]
[1771647298964,0.0001233,67739.0,67717.0,0.07383583]
[1771647299168,0.07382729,67726.0,67717.0,0.07383583]
[1771647299334,0.07244554,67725.0,67717.0,0.07383583]
[1771647299535,0.07244554,67725.0,67718.0,0.07383517]
[1771647299753,0.07244554,67725.0,67719.0,0.07383436]
[1771647300332,0.07382144,67731.0,67722.0,0.07383078]
[1771647300535,0.07297422,67738.0,67726.0,0.07382598]
[1771647300802,0.07381787,67735.0,67726.0,0.07382598]
[1771647301004,0.14679209,67735.0,67726.0,0.07382598]
[1771647301206,0.14679209,67735.0,67727.0,0.07382553]
[1771647301889,0.14679209,67735.0,67726.0,0.07382598]
[1771647302092,0.07297422,67735.0,67726.0,0.07382598]
[1771647302288,0.0001233,67739.0,67725.0,0.16755466]
[1771647302488,0.0001233,67739.0,67734.0,0.07381727]
[1771647303376,0.0001233,67739.0,67732.0,0.07382035]
[1771647303794,0.0001233,67739.0,67731.0,0.07382118]
[1771647303998,0.07393604,67739.0,67731.0,0.07382118]
[1771647305669,0.07321391,67737.0,67729.0,0.0738232]
[1771647306408,0.07321391,67737.0,67730.0,0.07382229]
[1771647306920,0.07321391,67737.0,67731.0,0.07382129]
[1771647307341,0.0001233,67739.0,67733.0,0.07381901]
[1771647308597,0.00016,67740.0,67733.0,0.07381901]
[1771647309563,0.00016,67740.0,67732.0,0.07382]
[1771647309857,0.00016,67740.0,67732.0,0.0741118]
[1771647310257,0.07380776,67744.0,67735.0,0.07381658]
[1771647310463,0.07380727,67744.0,67734.0,0.07381608]
[1771647310668,0.07380727,67744.0,67735.0,0.07381708]
[1771647311168,0.07380847,67743.0,67735.0,0.07381708]
[1771647311546,0.14162268,67743.0,67735.0,0.07381708]
[1771647312463,0.14162268,67743.0,67734.0,0.0002918]
[1771647312464,0.07380977,67742.0,67734.0,0.07410992]
[1771647312640,0.17315323,67742.0,67733.0,0.00022]
[1771647312846,0.06781421,67740.0,67733.0,0.00022]
[1771647314470,0.07381276,67739.0,67733.0,0.00022]
[1771647319491,0.07401276,67739.0,67733.0,0.00022]
[1771647320211,0.0002,67739.0,67733.0,0.00022]
[1771647320865,0.07401297,67739.0,67733.0,0.00022]
[1771647328041,0.0002,67739.0,67733.0,0.00022]
[1771647329617,0.07381451,67738.0,67733.0,0.00022]
[1771647329826,0.14130149,67738.0,67733.0,0.00022]
[1771647330323,0.07401314,67739.0,67733.0,0.00022]
[1771647332113,0.07381657,67736.0,67733.0,0.00022]
[1771647332855,0.07381657,67736.0,67730.0,0.00016]
[1771647333060,0.14129204,67736.0,67730.0,0.00016]
[1771647333850,0.06747547,67736.0,67730.0,0.00016]
[1771647334199,0.07381381,67738.0,67730.0,0.00016]
[1771647334761,0.07381496,67737.0,67730.0,0.00016]
[1771647338036,0.07381496,67737.0,67730.0,0.00038]
[1771647339922,0.07381381,67738.0,67730.0,0.00038]
[1771647341810,0.0002,67739.0,67730.0,0.00038]
[1771647342033,0.0002,67739.0,67733.0,0.0738172]
[1771647348197,0.46366873,67746.0,67730.0,0.00038]
[1771647348198,0.06853223,67746.0,67730.0,0.00038]
[1771647348405,0.07380822,67744.0,67735.0,0.07381635]
[1771647348650,0.22089589,67744.0,67735.0,0.07381635]
[1771647348947,0.07380861,67743.0,67735.0,0.07381635]
[1771647351826,0.07400861,67743.0,67735.0,0.07381635]
[1771647358972,0.07400861,67743.0,67735.0,0.07403635]
[1771647359469,0.46366478,67747.0,67735.0,0.07403635]
[1771647359470,0.00036,67750.0,67736.0,0.02327844]
[1771647359647,0.00036,67750.0,67735.0,0.29548396]
[1771647359806,0.00036,67750.0,67742.0,0.07380915]
[1771647360393,0.00036,67750.0,67743.0,0.07380774]
[1771647360810,0.00036,67750.0,67744.0,0.07380723]
[1771647361012,0.25115766,67753.0,67744.0,0.07380723]
[1771647362203,0.17736,67753.0,67744.0,0.07380723]
[1771647362701,0.17736,67753.0,67745.0,0.07380526]
[1771647366453,0.17756,67753.0,67745.0,0.07380526]
[1771647367558,0.17756,67753.0,67746.0,0.07380463]
[1771647368443,0.17756,67753.0,67745.0,0.07380591]
[1771647371734,0.1776638,67753.0,67745.0,0.07380591]
[1771647372501,0.1776638,67753.0,67746.0,0.07380491]
[1771647375719,0.1776638,67753.0,67746.0,0.07365844]
[1771647377669,0.1776638,67753.0,67745.0,0.07402581]
[1771647383191,0.25146138,67753.0,67745.0,0.07402581]
[1771647384321,0.07410138,67753.0,67745.0,0.07402581]
[1771647385684,0.07410138,67753.0,67745.0,0.00022]
[1771647390754,0.16278599,67736.0,67725.0,0.1478]
[1771647390953,0.07076995,67734.0,67729.0,0.07382277]
[1771647391128,0.07076995,67732.0,67730.0,0.07382177]
[1771647391352,0.07079878,67736.0,67730.0,0.07382177]
[1771647392746,0.07079878,67736.0,67729.0,0.07382339]
[1771647393643,0.08640158,67734.0,67726.0,0.00022]
[1771647393895,0.08640158,67734.0,67719.0,0.00022]
[1771647394056,0.16278599,67730.0,67723.0,0.0738301]
[1771647394247,0.08640158,67729.0,67723.0,0.0738301]
[1771647396763,0.08640158,67729.0,67721.0,0.07405016]
[1771647397163,0.08640158,67729.0,67722.0,0.07405113]
[1771647397892,0.08640158,67729.0,67723.0,0.07382989]
[1771647399740,0.08640158,67729.0,67723.0,0.07404989]
[1771647402348,0.08640158,67729.0,67723.0,0.00022]
[1771647406587,0.08640158,67729.0,67723.0,0.07404987]
[1771647406781,0.08640158,67729.0,67723.0,0.00022]
[1771647407007,0.08660158,67729.0,67723.0,0.07405002]
[1771647411472,0.0002,67729.0,67723.0,0.00022]
[1771647412086,0.0002,67729.0,67726.0,0.073826]
[1771647419157,0.0002,67729.0,67725.0,0.073826]
[1771647419739,0.0002,67729.0,67726.0,0.07382663]
[1771647422789,0.09624613,67729.0,67726.0,0.07382663]
[1771647429775,0.0002,67729.0,67726.0,0.07382663]
[1771647432551,0.0002,67729.0,67725.0,0.000133]
[1771647432897,0.09630758,67729.0,67725.0,0.000133]
[1771647433487,0.0002,67729.0,67725.0,0.07396071]
[1771647433696,0.07381841,67734.0,67725.0,0.07396071]
[1771647434313,0.16988713,67733.0,67725.0,0.07396071]
[1771647434952,0.09606765,67732.0,67725.0,0.07396071]
[1771647438422,0.09626765,67732.0,67725.0,0.07396071]
[1771647442208,0.0002,67732.0,67725.0,0.000133]
[1771647442438,0.0002,67732.0,67726.0,0.07382689]
[1771647442578,6.349e-05,67736.0,67730.0,0.07382163]
[1771647442989,6.349e-05,67736.0,67727.0,0.07382517]
[1771647442990,0.07388018,67736.0,67727.0,0.07382517]
[1771647443207,0.16978856,67736.0,67727.0,0.07382517]
[1771647443415,0.09586659,67735.0,67727.0,0.07382517]
[1771647443617,0.09586659,67735.0,67728.0,0.07382465]
[1771647443926,0.09586659,67735.0,67727.0,0.07382543]
[1771647444342,0.46306563,67740.0,67725.0,0.000133]
[1771647444343,0.00043928,67743.0,67731.0,0.15493213]
[1771647444572,0.0001126,67748.0,67740.0,0.07381146]
[1771647445502,0.0001126,67748.0,67741.0,0.07381047]
[1771647447105,0.0001126,67748.0,67731.0,0.45025391]
[1771647447106,0.07380602,67746.0,67735.0,0.07381496]
[1771647447345,0.07380602,67746.0,67731.0,4.038e-05]
[1771647447346,0.04788526,67746.0,67731.0,4.038e-05]
[1771647447498,0.20090451,67741.0,67732.0,0.07381823]
[1771647447705,0.0482606,67740.0,67732.0,0.07381823]
[1771647448168,0.05260708,67741.0,67732.0,0.07381823]
[1771647448344,0.01875559,67743.0,67734.0,0.07381806]
[1771647448529,0.07380935,67743.0,67734.0,0.07381806]
[1771647449531,0.025,67741.0,67734.0,0.07381806]
[1771647450737,0.07381155,67741.0,67732.0,0.07381979]
[1771647450955,0.29536403,67750.0,67732.0,0.07381979]
[1771647450956,0.025,67740.0,67732.0,0.07381979]
[1771647451160,0.025,67738.0,67731.0,0.07382054]
[1771647451564,0.025,67738.0,67732.0,0.07381948]
[1771647453483,0.025,67738.0,67731.0,0.07382054]
[1771647453690,0.07401083,67741.0,67733.0,0.07381923]
[1771647454966,0.09901083,67741.0,67733.0,0.07381923]
[1771647456282,0.025,67740.0,67733.0,0.07381923]
[1771647456487,0.025,67740.0,67733.0,0.07367279]
[1771647461635,0.025,67740.0,67732.0,0.07381996]
[1771647462943,0.07381289,67739.0,67731.0,0.07382054]
[1771647463141,0.07381289,67739.0,67730.0,0.00016]
[1771647463316,0.09881289,67739.0,67730.0,0.00016]
[1771647463516,0.09881289,67739.0,67730.0,0.07398164]
[1771647463786,0.07381289,67739.0,67730.0,0.07398164]
[1771647464070,0.025,67739.0,67723.0,0.00022]
[1771647464276,0.025,67735.0,67727.0,0.07382544]
[1771647464862,0.025,67734.0,67726.0,0.07382614]
[1771647466535,0.025,67734.0,67729.0,0.07382333]
[1771647469405,0.025,67734.0,67727.0,0.07382492]
[1771647471162,0.025,67734.0,67729.0,0.00022]
[1771647481069,0.07381833,67734.0,67729.0,0.00022]
[1771647481226,0.0988203,67733.0,67729.0,0.00022]
[1771647481426,0.025,67733.0,67729.0,0.00022]
[1771647482347,0.09881935,67733.0,67729.0,0.00022]
[1771647482547,0.025,67738.0,67725.0,0.00041649]
[1771647482750,0.07382038,67732.0,67725.0,0.00041649]
[1771647483160,0.025,67732.0,67725.0,0.07424444]
[1771647484139,0.025,67732.0,67725.0,0.0740324]
[1771647484339,0.025,67732.0,67727.0,0.00022]
[1771647496697,0.025,67732.0,67726.0,0.07254683]
[1771647497375,0.025,67732.0,67725.0,0.0740321]
[1771647497963,0.0252,67732.0,67725.0,0.0740321]
[1771647501886,0.0252,67732.0,67726.0,0.0738267]
[1771647503315,0.0252,67732.0,67725.0,0.07403202]
[1771647503515,0.0252,67732.0,67725.0,0.00020445]
[1771647503719,0.03825003,67731.0,67723.0,0.00022]
[1771647504104,0.11207218,67731.0,67723.0,0.00022]
[1771647504730,0.07382268,67730.0,67725.0,0.00022]
[1771647504955,0.11207271,67730.0,67725.0,0.00022]
[1771647507411,0.11207271,67730.0,67720.0,0.00038]
[1771647507412,0.03822064,67730.0,67715.0,0.00022]
[1771647507558,0.03822064,67720.0,67715.0,0.00022]
[1771647521768,0.07383346,67720.0,67715.0,0.00022]
[1771647521970,0.07383346,67720.0,67713.0,0.00022]
[1771647521971,0.03820304,67719.0,67713.0,0.00022]
[1771647522176,0.11203783,67719.0,67713.0,0.00022]
[1771647522404,0.16098055,67723.0,67713.0,0.00022]
[1771647522405,0.03820304,67716.0,67713.0,0.00022]
[1771647522533,0.03820304,67715.0,67711.0,0.0003428]
[1771647523139,0.03820304,67715.0,67701.0,0.00022]
[1771647523376,0.03820304,67708.0,67701.0,0.00022]
[1771647523792,0.03837972,67707.0,67701.0,0.00022]
[1771647524284,0.07384803,67707.0,67701.0,0.00022]
[1771647524670,0.11230306,67708.0,67701.0,0.00022]
[1771647524873,0.03845471,67708.0,67701.0,0.00022]
[1771647525071,0.11223024,67705.0,67701.0,0.00022]
[1771647525517,0.07385633,67699.0,67697.0,0.17762]
[1771647525691,7.499e-05,67708.0,67691.0,0.0001228]
[1771647525692,0.03842223,67702.0,67691.0,0.0001228]
[1771647525900,7.499e-05,67708.0,67691.0,0.0001228]
[1771647525901,0.07386298,67693.0,67691.0,0.0001228]
[1771647526095,0.11228356,67695.0,67691.0,0.0001228]
[1771647526337,0.11228356,67695.0,67686.0,0.0002028]
[1771647526338,0.0738679,67689.0,67686.0,0.0002028]
[1771647526633,0.00016,67700.0,67670.0,0.0024844]
[1771647526634,0.03842223,67682.0,67670.0,0.0024844]
[1771647526981,0.03842223,67675.0,67670.0,0.0024844]
[1771647527189,0.03842223,67674.0,67670.0,0.0024844]
[1771647527817,0.03842223,67674.0,67670.0,0.00287529]
[1771647528264,0.03842223,67674.0,67670.0,0.00272889]
[1771647529422,0.07388077,67677.0,67670.0,0.00272889]
[1771647530342,0.12074521,67677.0,67670.0,0.00272889]
[1771647530694,0.07388143,67676.0,67670.0,0.00272889]
[1771647531640,0.07388143,67676.0,67670.0,0.00294889]
[1771647532265,0.29548081,67687.0,67670.0,0.00294889]
[1771647532465,0.07387491,67682.0,67672.0,0.07388505]
[1771647532979,0.07387624,67681.0,67672.0,0.07388505]
[1771647533210,0.12074068,67681.0,67672.0,0.07388505]
[1771647534634,0.12074068,67681.0,67670.0,0.00294889]
[1771647534635,0.0738829,67675.0,67670.0,0.00294889]
[1771647534836,0.07388372,67674.0,67670.0,0.00294889]
[1771647535437,0.07388476,67673.0,67670.0,0.00294889]
[1771647535834,0.0738839,67674.0,67670.0,0.00294889]
[1771647536734,0.07388272,67675.0,67670.0,0.00294889]
[1771647536881,0.07388375,67674.0,67670.0,0.00294889]
[1771647537082,0.12074703,67675.0,67670.0,0.00294889]
[1771647537444,0.31910235,67682.0,67663.0,0.00022]
[1771647537445,0.07389007,67669.0,67663.0,0.00022]
[1771647537584,0.07389007,67669.0,67663.0,0.00030666]
[1771647539346,0.04686444,67668.0,67663.0,0.00030666]
[1771647540643,0.07388689,67671.0,67663.0,0.00030666]
[1771647542264,0.07388822,67670.0,67663.0,0.00030666]
[1771647543134,0.04686444,67670.0,67663.0,0.00030666]
[1771647543736,0.07388988,67669.0,67663.0,0.00030666]
[1771647544162,0.12075257,67670.0,67663.0,0.00030666]
[1771647545288,0.07388925,67669.0,67663.0,0.00030666]
[1771647545706,0.12075271,67670.0,67663.0,0.00030666]
[1771647546025,0.0738871,67671.0,67663.0,0.00030666]
[1771647547646,0.0738871,67671.0,67663.0,0.0742021]
[1771647548055,0.07388614,67672.0,67663.0,0.0742021]
[1771647548912,0.07387926,67678.0,67664.0,0.15457128]
[1771647549039,0.04686444,67682.0,67668.0,0.0738899]
[1771647549040,0.07388129,67677.0,67668.0,0.0738899]
[1771647549772,0.07388129,67678.0,67669.0,0.0738888]
[1771647550132,0.07388061,67677.0,67669.0,0.0738888]
[1771647551190,0.07387952,67678.0,67669.0,0.0738888]
[1771647551362,0.29547923,67687.0,67674.0,0.07388284]
[1771647551566,0.46355966,67690.0,67671.0,0.15457128]
[1771647551736,0.46355966,67690.0,67670.0,0.00016]
[1771647551938,0.04686444,67682.0,67670.0,0.00016]
[1771647552137,0.07387784,67680.0,67670.0,0.00016]
[1771647552603,0.07387672,67681.0,67671.0,0.07388606]
[1771647552796,0.07387672,67681.0,67672.0,0.07388471]
[1771647553193,0.04686444,67682.0,67673.0,0.07388373]
[1771647553496,0.17752,67683.0,67676.0,0.07388059]
[1771647553991,0.17752,67683.0,67675.0,0.07388236]
[1771647554193,0.17752,67683.0,67676.0,0.07388067]
[1771647554824,0.17752,67683.0,67670.0,0.00016]
[1771647555015,0.34155361,67711.0,67670.0,0.00016]
[1771647555016,0.00016,67690.0,67677.0,0.16793302]
[1771647555225,0.00016,67690.0,67681.0,0.07387597]
[1771647555367,0.07402641,67690.0,67680.0,0.24180795]
[1771647555574,0.07402641,67690.0,67680.0,0.07387493]
[1771647556098,0.07402641,67690.0,67681.0,0.07387597]
[1771647558699,3.889e-05,67683.0,67681.0,0.07387597]
[1771647560387,3.889e-05,67683.0,67682.0,0.07387488]
[1771647563294,0.0001308,67694.0,67680.0,0.07387493]
[1771647563295,0.0001308,67694.0,67681.0,0.15457128]
[1771647563456,0.0001308,67694.0,67685.0,0.29548486]
[1771647563654,0.0001308,67694.0,67688.0,0.07386818]
[1771647563882,0.0001308,67694.0,67681.0,0.15457128]
[1771647564080,0.0001308,67694.0,67686.0,0.07387036]
[1771647564583,0.00052165,67694.0,67686.0,0.07387036]
[1771647565603,0.0743836,67694.0,67686.0,0.07387036]
[1771647567710,0.00052165,67694.0,67686.0,0.07387036]
[1771647569150,0.07438369,67694.0,67686.0,0.07387036]
[1771647569682,0.00052165,67694.0,67686.0,0.07387036]
[1771647569803,0.00052165,67694.0,67687.0,0.0738694]
[1771647570304,0.04738609,67694.0,67682.0,0.00022]
[1771647570650,0.04738609,67694.0,67686.0,0.07386952]
[1771647571016,0.1212481,67694.0,67686.0,0.07386952]
[1771647571208,0.04738609,67694.0,67682.0,0.00022]
[1771647571418,0.1212482,67694.0,67685.0,0.07387133]
[1771647572835,0.07386294,67693.0,67685.0,0.07387133]
[1771647576451,0.121448,67694.0,67686.0,0.07387049]
[1771647579704,0.0002,67693.0,67686.0,0.07387049]
[1771647581221,0.0002,67693.0,67684.0,0.07387215]
[1771647581222,0.0002,67693.0,67685.0,0.07387124]
[1771647582099,0.04706444,67693.0,67685.0,0.07387124]
[1771647582294,0.04706444,67693.0,67682.0,0.00022]
[1771647582716,0.04706444,67693.0,67686.0,0.07386948]
[1771647584870,0.04706444,67693.0,67687.0,0.07386834]
[1771647585447,0.0002,67693.0,67686.0,0.29547806]
[1771647586518,0.0002,67693.0,67689.0,0.07386678]
[1771647587086,0.0002,67693.0,67688.0,0.07386791]
[1771647587265,0.0002,67693.0,67685.0,0.00022]
[1771647587266,0.0002,67693.0,67686.0,0.07387011]
[1771647588214,0.0002,67693.0,67687.0,0.07386929]
[1771647589781,0.0004232,67693.0,67687.0,0.07386929]
[1771647590408,0.0004232,67693.0,67688.0,0.07386735]
[1771647590784,0.0004232,67693.0,67687.0,0.07386929]
[1771647593539,0.0004232,67693.0,67688.0,0.07386749]
[1771647597888,0.0004232,67693.0,67688.0,0.05508101]
[1771647601046,0.0004232,67693.0,67687.0,0.07386929]
[1771647605177,0.0004232,67693.0,67686.0,0.07387027]
[1771647605381,0.0004232,67693.0,67686.0,0.07387051]
[1771647611716,0.0004232,67693.0,67686.0,0.07409051]
[1771647612721,0.0004232,67693.0,67682.0,0.00022]
[1771647612922,0.00016,67690.0,67672.0,0.25140504]
[1771647613120,0.07387921,67679.0,67671.0,0.00022]
[1771647613325,0.15031917,67678.0,67671.0,0.00022]
[1771647613546,0.00016,67690.0,67668.0,0.00022]
[1771647613547,0.07387706,67680.0,67668.0,0.00022]
[1771647613714,0.07387706,67680.0,67663.0,0.07411562]
[1771647613715,0.15031917,67675.0,67663.0,0.07411562]
[1771647613902,0.15031917,67679.0,67660.0,0.00016]
[1771647614104,0.04686444,67668.0,67660.0,0.00016]
[1771647614295,0.04686444,67668.0,67660.0,0.07405884]
[1771647615049,0.07389217,67667.0,67660.0,0.00016]
[1771647615196,0.04686444,67666.0,67660.0,0.00024666]
[1771647615825,0.12075707,67666.0,67660.0,0.00024666]
[1771647616169,0.04686444,67666.0,67660.0,0.00024666]
[1771647617454,0.04686444,67666.0,67660.0,0.07414549]
[1771647617837,0.04686444,67666.0,67661.0,0.07389774]
[1771647618265,0.15031917,67669.0,67661.0,0.07389774]
[1771647618582,0.19718361,67669.0,67661.0,0.07389774]
[1771647618994,0.04686444,67668.0,67661.0,0.07389774]
[1771647622996,0.04686444,67668.0,67662.0,0.07389662]
[1771647623675,0.04686444,67668.0,67663.0,0.07389475]
[1771647624227,0.00516805,67668.0,67662.0,0.07389662]
[1771647624434,0.00516805,67668.0,67664.0,0.07389448]
[1771647624612,0.09990277,67672.0,67664.0,0.07389448]
[1771647624814,0.02601624,67671.0,67664.0,0.07389448]
[1771647625594,0.29550168,67682.0,67664.0,0.07389448]
[1771647625595,0.07271915,67711.0,67690.0,0.00016]
[1771647625797,0.00036,67720.0,67700.0,0.02347171]
[1771647625798,0.02925326,67716.0,67700.0,0.02347171]
[1771647625992,0.0002688,67730.0,67714.0,0.29535869]
[1771647625993,0.02439452,67728.0,67714.0,0.29535869]
[1771647626221,0.17948877,67727.0,67720.0,0.07383238]
[1771647626418,0.17948877,67727.0,67719.0,0.03453772]
[1771647626638,0.17948877,67727.0,67710.0,0.02347171]
[1771647626835,0.15548534,67727.0,67721.0,0.07383128]
[1771647627442,0.15548534,67727.0,67722.0,0.04181129]
[1771647627602,0.17987986,67727.0,67722.0,0.04181129]
[1771647627806,0.17987986,67727.0,67723.0,0.07382983]
[1771647628227,0.17987986,67727.0,67721.0,0.07383128]
[1771647628433,0.17987986,67727.0,67722.0,0.07383125]
[1771647628595,0.17987986,67727.0,67723.0,0.07382957]
[1771647629213,0.17987986,67727.0,67722.0,0.07383105]
[1771647629410,0.15548534,67727.0,67711.0,0.295371]
[1771647629612,0.02439452,67725.0,67710.0,0.00016]
[1771647629827,0.15031917,67722.0,67714.0,0.0738389]
[1771647630043,0.15031917,67720.0,67712.0,0.07384168]
[1771647630265,0.02439452,67719.0,67712.0,0.07384168]
[1771647630443,0.02439452,67719.0,67714.0,0.0738389]
[1771647630648,0.02439452,67719.0,67710.0,0.29553503]
[1771647630649,0.17471369,67718.0,67711.0,0.07384324]
[1771647630930,0.15031917,67722.0,67717.0,0.0738367]
[1771647631252,0.00039109,67727.0,67717.0,0.0738367]
[1771647631253,0.02439452,67720.0,67717.0,0.0738367]
[1771647633436,0.02439452,67720.0,67717.0,0.07369021]
[1771647638153,0.17381549,67720.0,67711.0,0.07384113]
[1771647638354,0.07382958,67724.0,67715.0,0.07383871]
[1771647638355,0.0225717,67719.0,67715.0,0.07383871]
[1771647638523,0.14942097,67719.0,67712.0,0.07384128]
[1771647639359,0.15042097,67719.0,67712.0,0.07384128]
[1771647639658,0.17199267,67719.0,67714.0,0.07383944]
[1771647641851,0.14942097,67719.0,67712.0,0.07384128]
[1771647642050,0.14942097,67718.0,67697.0,0.16854672]
[1771647642251,0.14942097,67717.0,67697.0,0.02074672]
[1771647642440,0.0225717,67716.0,67697.0,0.02074672]
[1771647642938,0.14942097,67716.0,67707.0,0.07384661]
[1771647643272,0.0225717,67714.0,67707.0,0.07384714]
[1771647643607,0.0225717,67714.0,67697.0,0.02074672]
[1771647644169,0.0225717,67714.0,67701.0,0.07385415]
[1771647644377,0.0225717,67714.0,67709.0,0.07384456]
[1771647644579,0.0225717,67713.0,67709.0,0.07384456]
[1771647648078,0.0225717,67713.0,67710.0,0.07384431]
[1771647649472,0.14962097,67714.0,67712.0,0.07384215]
[1771647649473,0.0002,67714.0,67712.0,0.07384215]
[1771647651492,0.0002,67714.0,67711.0,0.07384292]
[1771647651935,0.0002,67714.0,67709.0,0.07384457]
[1771647652081,0.0225717,67713.0,67709.0,0.07384464]
[1771647652284,0.0225717,67713.0,67710.0,0.07384399]
[1771647652883,0.0225717,67713.0,67711.0,0.00022]
[1771647653820,0.0225717,67713.0,67711.0,0.07406318]
[1771647654255,0.0002,67714.0,67711.0,0.07406318]
[1771647655909,0.17199267,67717.0,67712.0,0.1476719]
[1771647656106,0.0225717,67716.0,67714.0,0.11813752]
[1771647656309,0.0225717,67716.0,67715.0,0.1476719]
[1771647656610,0.0225717,67716.0,67715.0,0.26580942]
[1771647656753,0.0225717,67716.0,67712.0,0.11813752]
[1771647657887,0.0225717,67716.0,67711.0,0.07406318]
[1771647657888,0.0225717,67716.0,67711.0,0.1922007]
[1771647659573,0.0225717,67716.0,67711.0,0.11835752]
[1771647660875,0.0225717,67716.0,67711.0,0.19220048]
[1771647661374,0.0225717,67716.0,67712.0,0.11813752]
[1771647661901,0.0225717,67716.0,67713.0,0.11813752]
[1771647665390,0.0225717,67716.0,67714.0,0.11813752]
[1771647665772,0.0225717,67716.0,67713.0,0.11813752]
[1771647666404,0.25127474,67719.0,67713.0,0.11813752]
[1771647666405,0.17744,67719.0,67713.0,0.11813752]
[1771647666557,0.17744,67719.0,67716.0,0.11813752]
[1771647666918,0.00036,67720.0,67717.0,0.07383665]
[1771647667700,0.00036,67720.0,67716.0,0.07383737]
[1771647671564,0.00036,67720.0,67713.0,0.19197782]
[1771647672135,0.00036,67720.0,67714.0,0.07383968]
[1771647676986,0.02442784,67720.0,67714.0,0.07383968]
[1771647679270,0.00036,67720.0,67714.0,0.07383968]
[1771647679462,0.00036,67720.0,67713.0,0.07383898]
[1771647679463,0.00036,67720.0,67715.0,0.07383885]
[1771647679663,0.00036,67720.0,67715.0,0.07369236]
[1771647681046,0.00036,67720.0,67715.0,0.07354587]
[1771647682233,0.00036,67720.0,67714.0,0.07405955]
[1771647688674,0.00036,67720.0,67714.0,0.07414535]
[1771647691377,0.00036,67720.0,67714.0,0.0003058]
[1771647691781,0.02406784,67719.0,67711.0,0.00022]
[1771647691992,0.07383561,67718.0,67711.0,0.00022]
[1771647694420,0.0738367,67717.0,67711.0,0.00022]
[1771647694738,0.02406784,67714.0,67708.0,0.0001222]
[1771647696137,0.07383973,67715.0,67708.0,0.0001222]
[1771647696993,0.07383747,67717.0,67708.0,0.0001222]
[1771647697299,0.07383747,67717.0,67709.0,0.07384528]
[1771647699443,0.07383501,67719.0,67709.0,0.07384528]
[1771647699444,0.07383599,67718.0,67709.0,0.07384528]
[1771647702538,0.07383679,67717.0,67709.0,0.07384528]
[1771647703080,0.07383679,67717.0,67708.0,0.0003422]
[1771647703908,0.07383679,67717.0,67708.0,0.07418793]
[1771647705635,0.07383679,67717.0,67709.0,0.07384471]
[1771647708676,0.07403679,67717.0,67709.0,0.07384471]
[1771647713417,0.0234993,67716.0,67708.0,0.0003422]
[1771647714518,0.0234993,67716.0,67709.0,0.07384471]
[1771647716056,0.0234993,67716.0,67708.0,0.0003422]
[1771647716210,0.07383958,67715.0,67708.0,0.0003422]
[1771647716822,0.09733888,67715.0,67708.0,0.0003422]
[1771647717023,0.0234993,67715.0,67708.0,0.0003422]
[1771647718126,0.09733855,67715.0,67708.0,0.0003422]
[1771647718727,0.0234993,67715.0,67708.0,0.0003422]
[1771647719248,0.0234993,67715.0,67708.0,0.07418861]
[1771647719430,0.0234993,67715.0,67708.0,0.0003422]
[1771647719826,0.0002,67717.0,67700.0,0.00038]
[1771647719827,0.0234993,67708.0,67700.0,0.00038]